bitfinex-derivatives/quotes_BTCF0:USTF0_20241203
["timestamp","ask_amount","ask_price","bid_price","bid_amount"]
[1733236642816,0.053231,93924.0,93902.0,0.00104]
[1733236642817,0.00010746,93924.0,93902.0,4e-05]
[1733236643122,4e-05,93903.0,93902.0,4e-05]
[1733236644327,0.10413684,93903.0,93902.0,4e-05]
[1733236644517,0.053282,93903.0,93902.0,4e-05]
[1733236644830,4e-05,93903.0,93902.0,4e-05]
[1733236645124,0.00804,93903.0,93902.0,0.00104]
[1733236645320,0.03750738,93903.0,93902.0,0.00104]
[1733236645524,0.00804,93903.0,93902.0,0.054281]
[1733236645725,0.00804,93903.0,93902.0,0.00104]
[1733236646618,0.36884,93903.0,93902.0,0.00104]
[1733236647625,0.00804,93903.0,93902.0,0.00104]
[1733236647829,0.00804,93903.0,93902.0,4e-05]
[1733236648021,0.00904,93903.0,93902.0,0.00104]
[1733236648226,0.00904,93903.0,93902.0,0.36184]
[1733236648544,0.00904,93903.0,93902.0,0.00104]
[1733236648545,0.09260955,93903.0,93902.0,0.00104]
[1733236648829,0.09260955,93903.0,93863.0,0.44756]
[1733236648830,0.053252,93884.0,93863.0,0.44756]
[1733236649034,0.3608,93884.0,93863.0,0.44756]
[1733236649352,4e-05,93877.0,93863.0,0.44756]
[1733236649627,4e-05,93877.0,93867.0,0.3608]
[1733236649830,0.02984267,93887.0,93879.0,0.053254]
[1733236650038,0.3608,93902.0,93879.0,0.053254]
[1733236650229,0.3608,93902.0,93886.0,4e-05]
[1733236650424,0.3608,93902.0,93901.0,4e-05]
[1733236650728,0.39038174,93902.0,93901.0,4e-05]
[1733236650928,0.02958174,93902.0,93901.0,4e-05]
[1733236651131,0.009,93903.0,93901.0,4e-05]
[1733236651529,0.009,93903.0,93891.0,0.3608]
[1733236651530,0.02131673,93932.0,93902.0,0.36084]
[1733236651732,0.02131673,93932.0,93911.0,0.3608]
[1733236651935,0.02935328,93924.0,93923.0,4e-05]
[1733236652126,0.00010746,93924.0,93923.0,4e-05]
[1733236652934,0.00910746,93924.0,93923.0,4e-05]
[1733236654234,0.47637708,93924.0,93911.0,0.001]
[1733236654436,0.3608,93912.0,93911.0,0.001]
[1733236654637,0.3608,93912.0,93884.0,0.3608]
[1733236654638,0.3608,93912.0,93896.0,0.3608]
[1733236655027,0.3608,93912.0,93905.0,0.053239]
[1733236655332,0.10647642,93911.0,93896.0,0.3608]
[1733236655751,0.009,93912.0,93896.0,0.3618]
[1733236655930,0.3608,93906.0,93896.0,0.3618]
[1733236656130,0.3608,93906.0,93896.0,0.001]
[1733236656439,0.3608,93906.0,93905.0,0.001]
[1733236656643,0.009,93912.0,93905.0,0.001]
[1733236657339,0.25232928,93929.0,93905.0,0.001]
[1733236657340,0.22078812,93931.0,93911.0,0.3608]
[1733236657537,0.0027,93943.0,93923.0,0.3608]
[1733236657836,0.25232928,93960.0,93958.0,0.053209]
[1733236657837,0.22078812,93960.0,93958.0,0.053209]
[1733236658037,0.22078812,93960.0,93959.0,0.3608]
[1733236658240,0.0304649,93978.0,93964.0,0.053206]
[1733236658241,0.22078812,93965.0,93964.0,0.053206]
[1733236658430,0.25232928,93973.0,93971.0,0.053202]
[1733236658631,0.25232928,93974.0,93973.0,0.053201]
[1733236658841,0.12153854,93974.0,93973.0,0.053201]
[1733236659029,0.25333516,93977.0,93976.0,0.0532]
[1733236659231,0.10689774,93977.0,93976.0,0.0532]
[1733236659435,0.10689774,93977.0,93976.0,0.05324]
[1733236659640,0.10317139,93977.0,93976.0,4e-05]
[1733236659836,0.0001311,93977.0,93976.0,4e-05]
[1733236660235,0.10317285,93977.0,93976.0,4e-05]
[1733236661040,0.0001311,93977.0,93976.0,0.36084]
[1733236661738,0.0001311,93977.0,93976.0,4e-05]
[1733236662049,0.0001311,93977.0,93976.0,0.00104]
[1733236662243,0.0001311,93977.0,93964.0,8.88e-05]
[1733236662444,0.053206,93965.0,93964.0,8.88e-05]
[1733236662648,0.053207,93963.0,93941.0,0.0027]
[1733236662841,0.3608,93947.0,93937.0,0.4474]
[1733236663033,0.00012,93942.0,93937.0,0.4474]
[1733236663236,0.00012,93938.0,93937.0,0.4474]
[1733236664046,0.00012,93938.0,93937.0,0.861422]
[1733236664235,0.11703205,93962.0,93960.0,0.053208]
[1733236664441,0.14638695,93962.0,93960.0,0.053208]
[1733236664637,0.11703205,93962.0,93961.0,4e-05]
[1733236666052,0.12603205,93962.0,93961.0,4e-05]
[1733236666541,0.12603205,93962.0,93961.0,0.00104]
[1733236667346,0.17923905,93962.0,93961.0,0.00104]
[1733236667649,0.12603205,93962.0,93961.0,0.00104]
[1733236670352,0.12603205,93962.0,93961.0,0.054248]
[1733236670738,0.02960628,93986.0,93976.0,0.0532]
[1733236670939,0.02960628,93986.0,93976.0,0.414]
[1733236671141,0.3608,93990.0,93976.0,0.414]
[1733236671443,0.0027,94006.0,93976.0,0.72164]
[1733236671637,0.296,94016.0,93998.0,0.413987]
[1733236671859,0.3608,94018.0,93998.0,0.3608]
[1733236672063,0.053169,94030.0,94017.0,0.053176]
[1733236672347,0.03028337,94019.0,94018.0,0.053175]
[1733236673261,8.538e-05,94029.0,94018.0,0.053175]
[1733236673444,8.538e-05,94029.0,94019.0,0.30259017]
[1733236673761,8.538e-05,94029.0,94028.0,4e-05]
[1733236674640,8.538e-05,94029.0,94028.0,0.36084]
[1733236674842,0.00103105,94034.0,94033.0,0.053167]
[1733236675348,0.00103105,94034.0,94033.0,0.053207]
[1733236676643,9.213e-05,94036.0,94035.0,0.053165]
[1733236677044,9.213e-05,94036.0,94035.0,0.053205]
[1733236677854,0.00609213,94036.0,94035.0,0.00104]
[1733236678752,0.00609213,94036.0,94035.0,0.054207]
[1733236679143,0.00609213,94036.0,94035.0,0.00104]
[1733236681050,1.3e-07,94036.0,94035.0,0.00104]
[1733236681354,0.03057944,94052.0,94051.0,0.053158]
[1733236681655,0.053151,94064.0,94051.0,0.36084]
[1733236681956,0.053151,94064.0,94035.0,0.001]
[1733236681957,0.3608,94058.0,94035.0,0.054167]
[1733236682146,0.0001066,94057.0,94035.0,0.001]
[1733236682452,4e-05,94036.0,94035.0,0.001]
[1733236682650,4e-05,94036.0,94033.0,0.02128051]
[1733236682851,4e-05,94036.0,94035.0,0.3608]
[1733236683054,0.004,94052.0,94035.0,0.3608]
[1733236683244,0.0001066,94057.0,94035.0,0.3608]
[1733236683245,0.0001066,94057.0,94051.0,0.3608]
[1733236683447,0.0041066,94057.0,94055.0,0.053155]
[1733236683954,0.0001066,94057.0,94055.0,0.053155]
[1733236684254,0.0001066,94057.0,94042.0,0.053163]
[1733236684255,0.02959837,94057.0,94042.0,0.053163]
[1733236684454,0.0001066,94057.0,94042.0,0.053163]
[1733236684663,0.3608,94053.0,94042.0,0.053163]
[1733236684954,0.3608,94053.0,94035.0,0.3608]
[1733236685157,0.10632698,94052.0,94024.0,0.00429547]
[1733236685349,0.0001066,94057.0,94049.0,0.3608]
[1733236685551,0.0001066,94057.0,94056.0,0.413956]
[1733236685848,0.02975827,94063.0,94062.0,0.053152]
[1733236686158,2.7e-07,94063.0,94062.0,0.053192]
[1733236686351,0.0027,94089.0,94088.0,0.053137]
[1733236686553,0.0027,94118.0,94088.0,0.413937]
[1733236686865,0.10012847,94100.0,94099.0,0.053171]
[1733236687056,0.3029,94127.0,94099.0,4e-05]
[1733236687244,0.356015,94127.0,94118.0,0.3608]
[1733236687451,0.356015,94127.0,94126.0,4e-05]
[1733236687950,0.46238083,94127.0,94126.0,4e-05]
[1733236688148,0.49212324,94127.0,94126.0,4e-05]
[1733236688462,0.49212324,94127.0,94099.0,0.00429401]
[1733236688463,0.053122,94115.0,94099.0,0.00429401]
[1733236688753,0.053122,94115.0,94088.0,0.0117]
[1733236688754,4e-05,94100.0,94088.0,0.001]
[1733236688952,4e-05,94100.0,94061.0,0.36239475]
[1733236688953,0.3608,94094.0,94061.0,0.36239475]
[1733236689157,0.3608,94081.0,94061.0,0.36239475]
[1733236689359,0.3608,94081.0,94069.0,0.053148]
[1733236689548,0.3608,94070.0,94061.0,0.00159475]
[1733236689744,0.3608,94062.0,94040.0,0.00064]
[1733236689943,9.789e-05,94069.0,94036.0,7.44e-05]
[1733236689944,0.3608,94043.0,94036.0,7.44e-05]
[1733236690149,0.3608,94043.0,94038.0,0.053165]
[1733236690351,4e-05,94037.0,94036.0,0.0532414]
[1733236690551,0.3608,94060.0,94036.0,0.0532414]
[1733236690860,0.03038521,94069.0,94068.0,0.053149]
[1733236691062,0.03038521,94069.0,94059.0,4e-05]
[1733236691264,0.3608,94060.0,94047.0,0.05316]
[1733236691556,0.3608,94060.0,94040.0,0.30259017]
[1733236691557,0.36084,94060.0,94040.0,0.30259017]
[1733236691752,0.36084,94060.0,94059.0,0.053154]
[1733236692356,0.053154,94059.0,94036.0,0.02235373]
[1733236692556,0.46716246,94060.0,94036.0,0.0010744]
[1733236692557,0.3608,94049.0,94036.0,0.0010744]
[1733236692857,0.46716246,94060.0,94059.0,0.053154]
[1733236692858,0.36084,94060.0,94059.0,0.053154]
[1733236693055,4e-05,94060.0,94059.0,0.053154]
[1733236693248,4e-05,94060.0,94059.0,0.413954]
[1733236693651,4e-05,94060.0,94059.0,0.053154]
[1733236694054,0.00304,94060.0,94059.0,0.001]
[1733236694455,0.10935568,94060.0,94059.0,0.001]
[1733236694656,0.13871785,94060.0,94059.0,0.001]
[1733236695159,0.03240217,94060.0,94059.0,0.001]
[1733236695551,0.03240217,94060.0,94051.0,0.053158]
[1733236695552,0.02940217,94060.0,94051.0,0.053158]
[1733236695750,0.03240217,94060.0,94051.0,0.053158]
[1733236696058,0.03240217,94060.0,94040.0,0.30259017]
[1733236696059,4e-05,94052.0,94044.0,0.053162]
[1733236696358,0.3608,94058.0,94040.0,0.30259017]
[1733236696359,4e-05,94045.0,94040.0,0.30259017]
[1733236696754,4e-05,94041.0,94040.0,0.35575517]
[1733236696954,4e-05,94041.0,94040.0,0.36905117]
[1733236697455,4e-05,94041.0,94040.0,0.39032353]
[1733236697656,4e-05,94041.0,94040.0,0.39032424]
[1733236697860,0.3608,94058.0,94046.0,0.053161]
[1733236698166,0.3608,94058.0,94047.0,0.03456802]
[1733236698355,0.3608,94058.0,94057.0,0.00011999]
[1733236698552,0.3608,94058.0,94057.0,0.01341599]
[1733236698969,4e-05,94060.0,94058.0,0.053154]
[1733236699158,4e-05,94060.0,94059.0,0.013296]
[1733236699460,0.053129,94103.0,94059.0,0.013296]
[1733236699461,0.02985831,94084.0,94068.0,0.053149]
[1733236699762,0.3608,94103.0,94068.0,0.053149]
[1733236699763,0.3608,94094.0,94092.0,0.053135]
[1733236699965,0.3608,94103.0,94091.0,0.3608]
[1733236700160,0.0299062,94103.0,94100.0,0.05313]
[1733236700358,0.053124,94113.0,94104.0,0.053128]
[1733236700557,0.053124,94113.0,94111.0,0.053124]
[1733236700558,0.02972662,94113.0,94111.0,0.053124]
[1733236700752,0.3608,94117.0,94112.0,0.00015999]
[1733236700958,7.73e-05,94116.0,94113.0,0.3608]
[1733236701163,7.73e-05,94116.0,94114.0,0.053123]
[1733236701667,7.73e-05,94116.0,94107.0,0.053126]
[1733236701961,7.73e-05,94116.0,94108.0,0.053126]
[1733236702264,7.73e-05,94116.0,94109.0,0.053125]
[1733236702567,7.73e-05,94116.0,94106.0,0.4468]
[1733236702764,0.3608,94113.0,94106.0,0.4468]
[1733236702968,4e-05,94107.0,94106.0,0.499927]
[1733236703965,4e-05,94107.0,94106.0,0.4468]
[1733236704563,4e-05,94107.0,94103.0,8.489e-05]
[1733236704564,0.053128,94104.0,94103.0,8.489e-05]
[1733236704763,0.413928,94104.0,94103.0,8.489e-05]
[1733236704963,0.413968,94104.0,94103.0,8.489e-05]
[1733236705158,0.46710258,94104.0,94103.0,8.489e-05]
[1733236705559,0.35884,94104.0,94103.0,8.489e-05]
[1733236705961,0.35884,94104.0,94103.0,0.05321389]
[1733236706165,4e-05,94104.0,94103.0,0.05321389]
[1733236706666,0.00304,94104.0,94103.0,0.05321389]
[1733236708072,0.00304,94104.0,94067.0,0.44668]
[1733236708073,0.36384,94104.0,94067.0,0.44668]
[1733236708268,0.3608,94082.0,94081.0,0.05473533]
[1733236708467,0.36084,94082.0,94081.0,0.00159433]
[1733236709374,0.46713082,94082.0,94081.0,0.00159433]
[1733236709569,0.36684,94082.0,94081.0,0.053142]
[1733236709878,0.00604,94082.0,94081.0,0.053142]
[1733236710077,0.00604,94082.0,94081.0,0.06643512]
[1733236710370,0.00704,94082.0,94081.0,0.11528563]
[1733236710567,0.00704,94082.0,94081.0,0.03556165]
[1733236710766,0.00704,94082.0,94081.0,0.01429312]
[1733236710966,0.00704,94082.0,94081.0,0.0355596]
[1733236711174,0.00704,94082.0,94081.0,0.08870322]
[1733236711367,0.00704,94082.0,94081.0,0.34221968]
[1733236711669,0.36784,94082.0,94081.0,0.03556122]
[1733236711862,0.36784,94082.0,94080.0,0.25351233]
[1733236711863,0.47413082,94082.0,94080.0,0.19013584]
[1733236712063,0.47413082,94082.0,94069.0,0.31689557]
[1733236712064,0.053143,94080.0,94072.0,0.19013584]
[1733236712268,0.053143,94080.0,94068.0,7.796e-05]
[1733236712269,0.3608,94073.0,94068.0,7.796e-05]
[1733236712474,0.36084,94073.0,94068.0,7.796e-05]
[1733236712780,0.3608,94070.0,94068.0,7.796e-05]
[1733236713263,4e-05,94069.0,94068.0,7.796e-05]
[1733236714875,0.36084,94069.0,94068.0,7.796e-05]
[1733236715463,0.36484,94069.0,94068.0,7.796e-05]
[1733236715670,0.00404,94069.0,94068.0,7.796e-05]
[1733236716063,0.00013309,94081.0,94080.0,0.053142]
[1733236716469,0.0027,94094.0,94093.0,0.053135]
[1733236716671,0.0298424,94102.0,94086.0,0.3608]
[1733236716885,0.0298424,94102.0,94101.0,0.05043]
[1733236717376,0.15838641,94109.0,94099.0,0.3608]
[1733236717567,0.15838641,94109.0,94093.0,0.0002]
[1733236717568,0.15838641,94109.0,94107.0,0.053127]
[1733236717878,0.15838641,94109.0,94093.0,0.0002]
[1733236717879,0.24162422,94109.0,94108.0,0.0002]
[1733236718377,0.34788962,94109.0,94108.0,0.0002]
[1733236718568,0.18950321,94109.0,94108.0,0.0002]
[1733236718972,0.13637721,94109.0,94108.0,0.0002]
[1733236719670,0.03011181,94109.0,94108.0,0.0002]
[1733236719871,0.36090462,94111.0,94109.0,0.053124]
[1733236720076,0.39095058,94111.0,94109.0,0.053124]
[1733236720280,0.00010462,94111.0,94110.0,0.0002]
[1733236720779,0.02955801,94127.0,94110.0,0.0002]
[1733236720974,0.3608,94140.0,94134.0,0.05311]
[1733236721182,0.02948916,94137.0,94126.0,0.0002]
[1733236721475,0.28492414,94152.0,94142.0,0.053105]
[1733236721684,0.28492414,94152.0,94151.0,0.0531]
[1733236721866,0.28504546,94152.0,94151.0,0.0531]
[1733236722067,0.00012132,94152.0,94151.0,0.0533]
[1733236722681,0.16665883,94152.0,94151.0,0.0533]
[1733236722872,0.11497539,94152.0,94151.0,0.0533]
[1733236723181,0.16665883,94152.0,94151.0,0.0002]
[1733236723379,0.22996161,94152.0,94151.0,0.0002]
[1733236723675,0.22988336,94152.0,94151.0,0.0002]
[1733236724176,0.2815668,94152.0,94151.0,0.0002]
[1733236724391,0.2815668,94152.0,94151.0,0.053301]
[1733236724571,0.11497539,94152.0,94151.0,0.053301]
[1733236724778,0.22608543,94152.0,94151.0,0.053301]
[1733236724972,0.11497539,94152.0,94151.0,0.053301]
[1733236725469,0.01387483,94152.0,94151.0,0.053301]
[1733236726478,0.01387483,94152.0,94151.0,0.0002]
[1733236726676,0.01387483,94152.0,94151.0,0.361]
[1733236727283,0.01387483,94152.0,94151.0,0.363]
[1733236728577,0.01387483,94152.0,94151.0,0.361]
[1733236728779,0.01387483,94152.0,94151.0,0.0002]
[1733236729778,0.04404982,94152.0,94151.0,0.0002]
[1733236729974,0.01387483,94152.0,94151.0,0.0002]
[1733236730177,0.053105,94143.0,94142.0,0.44685435]
[1733236730381,0.053105,94143.0,94124.0,0.25357729]
[1733236730382,0.053113,94130.0,94124.0,0.25357729]
[1733236730578,0.3608,94129.0,94124.0,0.25357729]
[1733236730787,0.46701179,94129.0,94124.0,0.25357729]
[1733236731089,0.413956,94125.0,94124.0,0.25357729]
[1733236731673,0.76204178,94125.0,94124.0,0.25357729]
[1733236731875,0.57187416,94125.0,94116.0,0.44648]
[1733236732079,0.3608,94117.0,94116.0,0.44648]
[1733236732672,0.36084,94117.0,94116.0,0.44648]
[1733236733074,0.053121,94114.0,94100.0,0.00013226]
[1733236733274,0.3608,94112.0,94100.0,0.00013226]
[1733236733481,0.053128,94102.0,94100.0,0.00013226]
[1733236733776,0.41252418,94101.0,94100.0,0.00013226]
[1733236734286,0.60204853,94101.0,94100.0,0.00013226]
[1733236734482,0.41252418,94101.0,94100.0,0.00013226]
[1733236735083,0.41252418,94101.0,94100.0,0.00113226]
[1733236735474,0.52832968,94101.0,94100.0,0.00113226]
[1733236735675,0.41252418,94101.0,94100.0,0.00113226]
[1733236736282,0.44293072,94101.0,94100.0,0.00113226]
[1733236736984,0.41252418,94101.0,94100.0,0.00113226]
[1733236737377,0.41252418,94101.0,94100.0,0.00013226]
[1733236737783,0.44295167,94101.0,94100.0,0.00013226]
[1733236738687,0.39126749,94101.0,94100.0,0.00013226]
[1733236739189,0.36084,94101.0,94100.0,0.00013226]
[1733236739783,4e-05,94101.0,94100.0,0.00013226]
[1733236740895,0.12640513,94119.0,94116.0,0.05312]
[1733236741196,0.3608,94120.0,94116.0,0.05316]
[1733236741691,0.45561625,94120.0,94116.0,0.05316]
[1733236741891,0.09481625,94118.0,94116.0,0.05316]
[1733236742194,0.36152,94120.0,94116.0,0.05316]
[1733236742195,0.3608,94120.0,94116.0,0.05316]
[1733236743086,0.09481625,94119.0,94116.0,0.05316]
[1733236743287,0.05312,94118.0,94116.0,4e-05]
[1733236743486,0.775439,94120.0,94116.0,4e-05]
[1733236743682,0.05312,94118.0,94116.0,4e-05]
[1733236743988,0.72232,94120.0,94116.0,4e-05]
[1733236744183,0.88033845,94120.0,94116.0,4e-05]
[1733236744386,0.88033845,94120.0,94116.0,0.00404]
[1733236744588,0.15801845,94119.0,94116.0,0.00404]
[1733236744993,0.72232,94120.0,94116.0,0.00104]
[1733236745192,4.8e-07,94117.0,94116.0,0.00104]
[1733236745392,4e-05,94125.0,94116.0,0.00104]
[1733236745393,0.18960769,94137.0,94116.0,0.00104]
[1733236745593,0.0008,94149.0,94137.0,0.053109]
[1733236745889,0.0008,94149.0,94136.0,0.05311]
[1733236745890,0.67738238,94166.0,94164.0,0.053094]
[1733236746193,0.3608,94166.0,94165.0,7.999e-05]
[1733236746391,0.36089583,94166.0,94165.0,7.999e-05]
[1733236748094,0.3608,94183.0,94165.0,0.41397399]
[1733236748392,0.3608,94183.0,94182.0,7.999e-05]
[1733236748589,0.053077,94195.0,94182.0,7.999e-05]
[1733236748998,0.3608,94195.0,94194.0,7.999e-05]
[1733236749200,0.39049196,94195.0,94194.0,7.999e-05]
[1733236751812,0.39049196,94195.0,94194.0,0.00107999]
[1733236752791,0.49665527,94195.0,94176.0,7.566e-05]
[1733236752992,0.3608,94187.0,94176.0,7.566e-05]
[1733236753302,4e-05,94177.0,94176.0,0.05316366]
[1733236754095,0.39049196,94195.0,94194.0,0.053077]
[1733236754306,0.36091408,94195.0,94194.0,0.053077]
[1733236754494,0.36091408,94195.0,94194.0,0.05311701]
[1733236755205,0.00011408,94195.0,94194.0,0.05311701]
[1733236756304,0.3073,94229.0,94220.0,0.053063]
[1733236756495,0.3608,94228.0,94214.0,0.3608]
[1733236756695,0.3608,94228.0,94210.0,0.30259017]
[1733236756900,4e-05,94215.0,94207.0,0.05307]
[1733236757103,4e-05,94215.0,94202.0,0.3608]
[1733236757104,0.0001075,94214.0,94202.0,0.3608]
[1733236757301,4e-05,94208.0,94207.0,0.05307]
[1733236759101,4e-05,94208.0,94207.0,0.07932353]
[1733236759303,0.0001075,94214.0,94213.0,0.053067]
[1733236759508,0.3635,94249.0,94228.0,0.053058]
[1733236759509,0.3608,94249.0,94228.0,0.053058]
[1733236759806,0.053047,94248.0,94239.0,0.30259017]
[1733236759998,0.39134964,94249.0,94239.0,0.30259017]
[1733236760202,0.053047,94248.0,94240.0,0.053051]
[1733236760397,0.39134964,94249.0,94239.0,0.30259017]
[1733236760398,7.881e-05,94247.0,94239.0,0.30259017]
[1733236760597,7.881e-05,94247.0,94240.0,0.44624]
[1733236760805,0.053057,94231.0,94220.0,0.00159193]
[1733236761004,0.3608,94221.0,94220.0,0.00159193]
[1733236761199,0.053053,94237.0,94220.0,0.00159193]
[1733236761405,0.3608,94241.0,94220.0,0.3041821]
[1733236761600,0.3608,94241.0,94239.0,0.053052]
[1733236761801,0.39081783,94241.0,94239.0,0.053052]
[1733236761999,0.3608,94241.0,94239.0,0.053052]
[1733236762199,7.881e-05,94247.0,94246.0,0.053048]
[1733236762600,7.881e-05,94247.0,94246.0,0.05312801]
[1733236764099,7.881e-05,94247.0,94246.0,8.001e-05]
[1733236765109,7.881e-05,94247.0,94246.0,0.00108001]
[1733236766708,0.05312681,94247.0,94246.0,0.00108001]
[1733236767013,7.881e-05,94247.0,94246.0,0.00108001]
[1733236767507,7.881e-05,94247.0,94246.0,8.001e-05]
[1733236771215,7.881e-05,94247.0,94246.0,0.05312801]
[1733236772306,0.02928263,94253.0,94252.0,0.053045]
[1733236772810,0.3608,94270.0,94252.0,8.001e-05]
[1733236773015,0.3608,94270.0,94254.0,0.053043]
[1733236773209,0.3608,94270.0,94269.0,8.001e-05]
[1733236773408,0.36090076,94270.0,94269.0,8.001e-05]
[1733236774006,0.39055426,94270.0,94269.0,8.001e-05]
[1733236774415,0.39055426,94270.0,94269.0,0.00108001]
[1733236775114,0.39055426,94270.0,94269.0,8.001e-05]
[1733236775308,0.39055426,94270.0,94269.0,0.00108001]
[1733236777110,0.02975426,94270.0,94269.0,0.00108001]
[1733236777313,0.02842663,94270.0,94269.0,0.00108001]
[1733236777517,0.3608,94289.0,94282.0,0.053028]
[1733236777815,0.3608,94289.0,94260.0,0.35563017]
[1733236777816,0.39113763,94289.0,94288.0,8.001e-05]
[1733236778307,0.39124511,94289.0,94288.0,8.001e-05]
[1733236779217,0.39124511,94289.0,94263.0,0.00159128]
[1733236779218,0.053035,94269.0,94263.0,0.00159128]
[1733236779414,0.3608,94265.0,94263.0,0.00159128]
[1733236779615,4e-05,94264.0,94263.0,0.00159128]
[1733236780212,4e-05,94264.0,94254.0,0.02123282]
[1733236780412,4e-05,94264.0,94262.0,0.053039]
[1733236780720,0.3608,94274.0,94270.0,0.053034]
[1733236780926,0.3608,94274.0,94272.0,0.053033]
[1733236781221,0.3608,94274.0,94270.0,0.19458947]
[1733236781222,0.39060461,94282.0,94273.0,4e-05]
[1733236781613,0.39060461,94282.0,94281.0,4e-05]
[1733236785810,0.02980461,94282.0,94281.0,4e-05]
[1733236786016,0.00010748,94289.0,94281.0,4e-05]
[1733236786215,0.00010748,94289.0,94288.0,0.053024]
[1733236786427,0.02927587,94289.0,94288.0,0.053024]
[1733236786619,0.02927587,94289.0,94288.0,0.053064]
[1733236786620,0.00010748,94289.0,94288.0,0.053064]
[1733236787420,0.00010748,94289.0,94288.0,4e-05]
[1733236790118,2.747e-05,94289.0,94288.0,0.36084]
[1733236790523,0.3608,94309.0,94299.0,0.053018]
[1733236790818,0.3608,94320.0,94299.0,0.053058]
[1733236791424,0.03061412,94303.0,94299.0,0.05313377]
[1733236793026,0.153018,94300.0,94299.0,0.00011577]
[1733236793219,0.153018,94300.0,94299.0,0.00111577]
[1733236793520,0.1,94300.0,94299.0,0.36469377]
[1733236794124,0.3608,94315.0,94299.0,0.31167577]
[1733236794315,0.3608,94331.0,94329.0,0.053001]
[1733236794517,0.00064,94344.0,94323.0,0.053004]
[1733236794817,0.3608,94353.0,94343.0,4e-05]
[1733236795016,0.00056001,94365.0,94348.0,0.3608]
[1733236795323,0.00056001,94379.0,94364.0,4e-05]
[1733236795529,9.953e-05,94376.0,94369.0,0.29987245]
[1733236795713,9.953e-05,94376.0,94366.0,0.29987245]
[1733236796029,4e-05,94367.0,94366.0,0.29987245]
[1733236796725,4e-05,94367.0,94366.0,0.35285245]
[1733236796916,4e-05,94367.0,94366.0,0.29987245]
[1733236797118,4e-05,94367.0,94366.0,0.30087245]
[1733236797432,9.953e-05,94376.0,94374.0,0.052976]
[1733236797629,9.953e-05,94376.0,94375.0,0.3608]
[1733236798125,0.4608,94400.0,94375.0,0.3608]
[1733236798329,0.489908,94400.0,94390.0,0.29987245]
[1733236798630,0.489908,94400.0,94399.0,4e-05]
[1733236799124,0.4609207,94400.0,94399.0,4e-05]
[1733236799317,0.1001207,94400.0,94399.0,4e-05]
[1733236799522,0.1001207,94400.0,94399.0,0.00011829]
[1733236799727,0.3608,94426.0,94399.0,0.00011829]
[1733236799994,0.03045076,94433.0,94425.0,0.052947]
[1733236800165,0.3608,94437.0,94425.0,4e-05]
[1733236800430,0.3608,94446.0,94432.0,4e-05]
[1733236800622,0.3608,94441.0,94436.0,4e-05]
[1733236800823,0.3608,94441.0,94420.0,0.66067245]
[1733236801017,0.00012531,94440.0,94420.0,0.29987245]
[1733236801418,0.00012531,94440.0,94422.0,0.052949]
[1733236801627,0.00012531,94440.0,94438.0,0.05294]
[1733236802020,0.00012531,94440.0,94438.0,0.41374]
[1733236803037,0.3608,94439.0,94410.0,0.29987245]
[1733236803328,0.052949,94422.0,94410.0,0.29987245]
[1733236803534,0.052949,94422.0,94407.0,0.00158896]
[1733236803535,0.3608,94423.0,94411.0,0.02120758]
[1733236803832,0.00012531,94440.0,94419.0,0.3608]
[1733236804030,0.00012531,94440.0,94429.0,0.29987245]
[1733236804031,0.00056001,94439.0,94429.0,0.29987245]
[1733236804222,0.00012531,94440.0,94439.0,0.052939]
[1733236804424,0.00012531,94440.0,94439.0,0.413739]
[1733236804624,0.3608,94460.0,94457.0,0.052929]
[1733236804923,0.3608,94460.0,94449.0,0.3608]
[1733236805128,0.3608,94460.0,94458.0,0.052929]
[1733236805324,4e-05,94450.0,94449.0,0.3608]
[1733236805530,4e-05,94450.0,94439.0,0.68455629]
[1733236805829,0.3608,94449.0,94447.0,0.052935]
[1733236806130,0.00011877,94451.0,94450.0,0.052933]
[1733236808233,0.00011877,94451.0,94448.0,0.38210814]
[1733236808234,0.00011877,94451.0,94448.0,0.00011185]
[1733236808530,0.00011877,94451.0,94450.0,0.30248]
[1733236810238,0.00011877,94451.0,94450.0,0.66328]
[1733236810628,0.00011877,94451.0,94450.0,0.30248]
[1733236814029,0.3608,94480.0,94450.0,0.30248]
[1733236814030,0.3608,94498.0,94450.0,0.32367131]
[1733236814335,0.3608,94486.0,94460.0,0.55453547]
[1733236814527,0.3024,94485.0,94460.0,0.55453547]
[1733236814730,0.052917,94480.0,94468.0,0.052923]
[1733236814928,0.3608,94474.0,94470.0,0.19373547]
[1733236815132,0.3608,94474.0,94473.0,0.052921]
[1733236816341,0.00010912,94479.0,94478.0,0.052918]
[1733236817034,0.00010912,94479.0,94470.0,0.19373547]
[1733236817235,0.00010912,94479.0,94460.0,0.3608]
[1733236817438,0.3608,94467.0,94460.0,0.3618]
[1733236817739,4e-05,94471.0,94460.0,0.3618]
[1733236818042,4e-05,94471.0,94470.0,4e-05]
[1733236818343,0.03005258,94471.0,94470.0,4e-05]
[1733236818545,0.36084,94471.0,94460.0,0.34232]
[1733236818843,4e-05,94461.0,94460.0,0.001]
[1733236819728,4e-05,94461.0,94459.0,0.052929]
[1733236820740,4e-05,94471.0,94459.0,0.052929]
[1733236821041,4e-05,94471.0,94470.0,0.413763]
[1733236821833,0.3608,94496.0,94494.0,0.052909]
[1733236822238,0.3608,94496.0,94495.0,8e-05]
[1733236823538,0.3608,94496.0,94495.0,0.052988]
[1733236823941,8.819e-05,94499.0,94498.0,0.052907]
[1733236824148,8.819e-05,94499.0,94498.0,0.413707]
[1733236824340,8.819e-05,94499.0,94498.0,0.413787]
[1733236825149,8.819e-05,94499.0,94498.0,0.052987]
[1733236825347,0.303,94529.0,94498.0,0.052987]
[1733236825348,0.00056001,94543.0,94511.0,0.0529]
[1733236825542,0.00056001,94543.0,94498.0,0.413787]
[1733236825543,0.3608,94549.0,94533.0,0.052887]
[1733236825842,0.3608,94549.0,94534.0,0.3608]
[1733236826146,0.00060001,94556.0,94555.0,0.052875]
[1733236826350,0.3,94557.0,94555.0,0.0529491]
[1733236826533,0.3,94557.0,94555.0,0.0530291]
[1733236826735,0.30064,94557.0,94556.0,8e-05]
[1733236827139,0.3,94557.0,94556.0,8e-05]
[1733236827442,7.568e-05,94559.0,94556.0,8e-05]